{"text_format":"3","workbook":"xlsx","n_sheets":4,"sheets":["Початок","Витрати","Прибуток","Зведення"],"not_rendered":{"charts":1,"defined_names":2},"read":"whole","date_system":"1900"}

{"sheet":"Початок","index":0,"n_rows":8,"n_cols":2,"rows_kept":8}
[null,"ПРО ЦЕЙ ШАБЛОН"]
[null,"Відстежуйте витрати на захід і отримані від нього Прибуток за допомогою цієї книги планування."]
[null,"У таблиці на аркушах витрати і Прибуток введіть назву заходу й укажіть відомості про нього."]
[null,"Загальні витрати та Загальний прибуток обчислюються автоматично."]
[null,"Діаграма та зведення прибутків і збитків автоматично оновлюються на аркуші \"Зведення\"."]
[null,"Примітка. "]
[null,"Додаткові вказівки наведено в стовпці A на кожному аркуші. Цей текст приховано навмисно. Щоб вилучити текст, виберіть стовпець A й натисніть клавішу Видалeння. Щоб відобразити текст, виберіть стовпець A та змініть колір шрифту."]
[null,"Щоб дізнатися більше про таблиці, натисніть клавіші Shift+F10 у таблиці, виберіть \"Таблиця\", а потім – \"Текст заміщення\"."]

{"sheet":"Витрати","index":1,"n_rows":33,"n_cols":8,"rows_kept":33,"merged":[[0,5,0,7],[1,1,1,7],[2,6,2,7]]}
["Введіть орієнтовнo та фактичнo витрати на кожну категорію у відповідні таблиці на цьому аркуші. Загальні витрати обчислюються автоматично. Корисні вказівки щодо роботи з цим аркушем наведено в клітинках у цьому стовпці. Клацніть стрілку вниз, щоб почати."]
["Введіть назву заходу в клітинку праворуч, щоб налаштувати заголовки цього та інших аркушів.","Бюджет \nзаходу"]
["У клітинці G3 наведено надпис \"Витрати\".",{"$nulls":5}," Витрати"]
["Надпис \"Орієнтовно\" наведено в клітинці G4, а \"Фактично\" – у клітинці H4.",{"$nulls":5},"Орієнтовно","Фактично"]
["Надпис \"Загальні витрати\" наведено в клітинці праворуч. Орієнтовнo загальні витрати обчислюються автоматично в клітинці G5. Фактичнo загальні витрати та гістограма автоматично оновлюються в клітинці H5. Подальші вказівки наведено в клітинці A7.","Загальні витрати",{"$nulls":4},{"$f":"SUM(C12,C20,C26,C33,G12,G20,G25)","v":{"v":1145,"d":"1,145.00₴"}},{"$f":"SUM(D12,D20,D26,D33,H12,H20,H25)","v":{"v":395,"d":"395.00₴"}}]
[]
["Суми витрат на місце проведення введіть у таблицю, починаючи з клітинки праворуч, а суми витрат на легкі закуски – у таблицю, починаючи з клітинки F7. Подальші вказівки наведено в клітинці A14.","Місце проведення","Орієнтовно","Фактично",null,"Легкі закуски","Орієнтовно","Фактично"]
[null,"Плата за користування кімнатою та залом",{"v":500,"d":"500.00₴"},{"v":250,"d":"250.00₴"},null,"Страви"]
[null,"Співробітники на місці проведення",{"v":400,"d":"400.00₴"},{"v":50,"d":"50.00₴"},null,"Напої"]
[null,"Обладнання",{"$nulls":3},"Скатертини"]
[null,"Столи та стільці",{"$nulls":3},"Персонал і чайові"]
[null,"Підсумок",{"$f":"SUBTOTAL(109,ВитратиНаМісцеПроведення[Орієнтовно])","v":{"v":900,"d":"900.00₴"}},{"$f":"SUBTOTAL(109,ВитратиНаМісцеПроведення[Фактично])","v":{"v":300,"d":"300.00₴"}},null,"Підсумок",{"$f":"SUBTOTAL(109,ВитратиНаЛегкіЗакуски[Орієнтовно])","v":{"v":0,"d":"0.00₴"}},{"$f":"SUBTOTAL(109,ВитратиНаЛегкіЗакуски[Фактично])","v":{"v":0,"d":"0.00₴"}}]
[]
["Суми Витрати На Прикраси введіть у таблицю, починаючи з клітинки праворуч, а суми Витрати На Програму – у таблицю, починаючи з клітинки F14. Подальші вказівки наведено в клітинці A22.","Прикраси","Орієнтовно","Фактично",null,"Програма","Орієнтовно","Фактично"]
[null,"Квіти",{"v":200,"d":"200.00₴"},{"v":50,"d":"50.00₴"},null,"Виконувачі"]
[null,"Свічки",{"$nulls":3},"Промовці"]
[null,"Освітлення",{"$nulls":3},"Подорож"]
[null,"Повітряні кульки",{"$nulls":3},"Готель"]
[null,"Папір",{"$nulls":3},"Інше"]
[null,"Підсумок",{"$f":"SUBTOTAL(109,ВитратиНаПрикраси[Орієнтовно])","v":{"v":200,"d":"200.00₴"}},{"$f":"SUBTOTAL(109,ВитратиНаПрикраси[Фактично])","v":{"v":50,"d":"50.00₴"}},null,"Підсумок",{"$f":"SUBTOTAL(109,ВитратиНаПрограму[Орієнтовно])","v":{"v":0,"d":"0.00₴"}},{"$f":"SUBTOTAL(109,ВитратиНаПрограму[Фактично])","v":{"v":0,"d":"0.00₴"}}]
[]
["Суми Витрати На Рекламу введіть у таблицю, починаючи з клітинки праворуч, а суми Витрати На Призи – у таблицю, починаючи з клітинки F22. Подальші вказівки наведено в клітинці A28.","Реклама","Орієнтовно","Фактично",null,"Призи","Орієнтовно","Фактично"]
[null,"Графічні роботи",{"v":45,"d":"45.00₴"},{"v":45,"d":"45.00₴"},null,"Стрічки/таблички/трофеї"]
[null,"Ксерокопіювання/друк",{"$nulls":3},"Подарунки"]
[null,"Поштові витрати",{"$nulls":3},"Підсумок",{"$f":"SUBTOTAL(109,ВитратиНаПризи[Орієнтовно])","v":{"v":0,"d":"0.00₴"}},{"$f":"SUBTOTAL(109,ВитратиНаПризи[Фактично])","v":{"v":0,"d":"0.00₴"}}]
[null,"Підсумок",{"$f":"SUBTOTAL(109,ВитратиНаРекламу[Орієнтовно])","v":{"v":45,"d":"45.00₴"}},{"$f":"SUBTOTAL(109,ВитратиНаРекламу[Фактично])","v":{"v":45,"d":"45.00₴"}}]
[]
["Суми Інші Витрати введіть у таблицю, починаючи з клітинки праворуч.","Різне","Орієнтовно","Фактично"]
[null,"Телефон"]
[null,"Транспорт"]
[null,"Канцтовари"]
[null,"Послуги факсу"]
[null,"Підсумок",{"$f":"SUBTOTAL(109,ІншіВитрати[Орієнтовно])","v":{"v":0,"d":"0.00₴"}},{"$f":"SUBTOTAL(109,ІншіВитрати[Фактично])","v":{"v":0,"d":"0.00₴"}}]

{"sheet":"Прибуток","index":2,"n_rows":30,"n_cols":7,"rows_kept":30,"merged":[[1,1,1,6],[2,5,2,6]]}
["Введіть орієнтовнo та фактичнo прибутки з кожної категорії у відповідні таблиці цього аркуша. Загальна сума прибутку обчислюється автоматично. Корисні вказівки щодо роботи з цим аркушем наведено в клітинках у цьому стовпці. Клацніть стрілку вниз, щоб почати."]
["Назва заходу автоматично оновлюється в клітинці праворуч.",{"$f":"Витрати!B2","v":"Бюджет \nзаходу"}]
["У клітинці F3 наведено надпис \"Прибуток\".",{"$nulls":4}," Прибуток"]
["Надпис \"Орієнтовно\" наведено в клітинці F4, а \"Фактично\" – у клітинці G4.",{"$nulls":4},"Орієнтовно","Фактично"]
["Надпис \"Загальний прибуток\" наведено в клітинці праворуч. Орієнтовний загальний прибуток обчислюється автоматично в клітинці F5. Фактичний загальний прибуток і гістограма автоматично оновлюються в клітинці G5.","Загальний прибуток",{"$nulls":3},{"$f":"SUM(Квитки[[#Totals],[Орієнтовний загальний прибуток]],РекламніЛистівки[[#Totals],[Орієнтовний загальний прибуток]],УчасникиВиставкиТаПостачальники[[#Totals],[Орієнтовний загальний прибуток]],КількістьПроданихТоварів[[#Totals],[Орієнтовний загальний прибуток]])","v":{"v":1936,"d":"1,936.00₴"}},{"$f":"SUM(Квитки[[#Totals],[Фактичний загальний прибуток]],РекламніЛистівки[[#Totals],[Фактичний загальний прибуток]],УчасникиВиставкиТаПостачальники[[#Totals],[Фактичний загальний прибуток]],КількістьПроданихТоварів[[#Totals],[Фактичний загальний прибуток]])","v":{"v":1831,"d":"1,831.00₴"}}]
["Надпис \"Квитки\" наведено в клітинці праворуч.","Квитки"]
["Введіть орієнтовнo й фактичнo кількість Квитки і їхню ціну в таблицю, починаючи з клітинки праворуч. Орієнтовниo і фактичнo прибуток від збуту Квитки обчислюється автоматично. Подальші вказівки наведено в клітинці A12.","Орієнтовно","Фактично","Тип","Ціна","Орієнтовний загальний прибуток","Фактичний загальний прибуток"]
[null,300,278,"Дорослі @",{"v":5,"d":"5.00₴"},{"$f":"B8*E8","v":{"v":1500,"d":"1,500.00₴"}},{"$f":"C8*E8","v":{"v":1390,"d":"1,390.00₴"}}]
[null,197,195,"Діти @",{"v":2,"d":"2.00₴"},{"$f":"B9*E9","v":{"v":394,"d":"394.00₴"}},{"$f":"C9*E9","v":{"v":390,"d":"390.00₴"}}]
[null,42,51,"Інші @",{"v":1,"d":"1.00₴"},{"v":42,"d":"42.00₴"},{"v":51,"d":"51.00₴"}]
[null," ",{"$nulls":3},{"$f":"SUBTOTAL(109,Квитки[Орієнтовний загальний прибуток])","v":{"v":1936,"d":"1,936.00₴"}},{"$f":"SUBTOTAL(109,Квитки[Фактичний загальний прибуток])","v":{"v":1831,"d":"1,831.00₴"}}]
["Надпис \"Рекламні листівки\" наведено в клітинці праворуч.","Рекламні листівки"]
["Введіть орієнтовнo й фактичнo кількість Рекламні листівки і їхню вартість у таблицю, починаючи з клітинки праворуч. Орієнтовниo і фактичниo прибуток від реклами обчислюється автоматично. Подальші вказівки наведено в клітинці A18.","Орієнтовно","Фактично","Тип","Ціна","Орієнтовний загальний прибуток","Фактичний загальний прибуток"]
[{"$nulls":3},"Титульні сторінки @",null,{"$f":"B14*E14","v":{"v":0,"d":"0.00₴"}},{"$f":"C14*E14","v":{"v":0,"d":"0.00₴"}}]
[{"$nulls":3},"На половину сторінки @",null,{"$f":"B15*E15","v":{"v":0,"d":"0.00₴"}},{"$f":"C15*E15","v":{"v":0,"d":"0.00₴"}}]
[{"$nulls":3},"На чверть сторінки @",null,{"v":0,"d":"0.00₴"},{"v":0,"d":"0.00₴"}]
[null," ",{"$nulls":3},{"$f":"SUBTOTAL(109,РекламніЛистівки[Орієнтовний загальний прибуток])","v":{"v":0,"d":"0.00₴"}},{"$f":"SUBTOTAL(109,РекламніЛистівки[Фактичний загальний прибуток])","v":{"v":0,"d":"0.00₴"}}]
["Надпис \"Учасники виставки або постачальники\" наведено в клітинці праворуч.","Учасники виставки / постачальники"]
["Введіть орієнтовнo й фактичнo кількість учасників виставки, постачальників і стендів у таблицю, починаючи з клітинки праворуч. Орієнтовниo і фактичниo прибуток обчислюється автоматично. Подальші вказівки наведено в клітинці A24.","Орієнтовно","Фактично","Тип","Ціна","Орієнтовний загальний прибуток","Фактичний загальний прибуток"]
[{"$nulls":3},"Великі стенди @",null,{"$f":"B20*E20","v":{"v":0,"d":"0.00₴"}},{"$f":"C20*E20","v":{"v":0,"d":"0.00₴"}}]
[{"$nulls":3},"Середні стенди @",null,{"$f":"B21*E21","v":{"v":0,"d":"0.00₴"}},{"$f":"C21*E21","v":{"v":0,"d":"0.00₴"}}]
[{"$nulls":3},"Малі стенди @",null,{"v":0,"d":"0.00₴"},{"v":0,"d":"0.00₴"}]
[null," ",{"$nulls":3},{"$f":"SUBTOTAL(109,УчасникиВиставкиТаПостачальники[Орієнтовний загальний прибуток])","v":{"v":0,"d":"0.00₴"}},{"$f":"SUBTOTAL(109,УчасникиВиставкиТаПостачальники[Фактичний загальний прибуток])","v":{"v":0,"d":"0.00₴"}}]
["Надпис \"Кількість проданих товарів\" наведено в клітинці праворуч.","Кількість проданих товарів"]
["Введіть орієнтовнo й фактичнo кількість проданих товарів і їхню ціну в таблицю, починаючи з клітинки праворуч. Орієнтовниo і фактичниo прибуток обчислюється автоматично.","Орієнтовно","Фактично","Тип","Ціна","Орієнтовний загальний прибуток","Фактичний загальний прибуток"]
[{"$nulls":3},"Елементи @",null,{"$f":"B26*E26","v":{"v":0,"d":"0.00₴"}},{"$f":"C26*E26","v":{"v":0,"d":"0.00₴"}}]
[{"$nulls":3},"Елементи @",null,{"$f":"B27*E27","v":{"v":0,"d":"0.00₴"}},{"$f":"C27*E27","v":{"v":0,"d":"0.00₴"}}]
[{"$nulls":3},"Елементи @",null,{"v":0,"d":"0.00₴"},{"v":0,"d":"0.00₴"}]
[{"$nulls":3},"Елементи @",null,{"v":0,"d":"0.00₴"},{"v":0,"d":"0.00₴"}]
[null," ",{"$nulls":3},{"$f":"SUBTOTAL(109,КількістьПроданихТоварів[Орієнтовний загальний прибуток])","v":{"v":0,"d":"0.00₴"}},{"$f":"SUBTOTAL(109,КількістьПроданихТоварів[Фактичний загальний прибуток])","v":{"v":0,"d":"0.00₴"}}]

{"sheet":"Зведення","index":3,"n_rows":9,"n_cols":4,"rows_kept":9,"merged":[[1,1,1,3],[2,2,2,3],[8,1,8,4],[9,1,9,3]]}
["Зведення прибутків і збитків, а також діаграма відомостей про загальні показники автоматично оновлюються на цьому аркуші. Корисні вказівки щодо роботи з цим аркушем наведено в клітинках у цьому стовпці. Клацніть стрілку вниз, щоб почати."]
["Назва заходу автоматично оновлюється в клітинці праворуч.",{"$f":"Витрати!B2","v":"Бюджет \nзаходу"}]
["Надпис \"Зведення прибутків і збитків\" наведено в клітинці C3. Подальші вказівки наведено в клітинці A5.",null,"Зведення прибутків і збитків"]
[]
["Підсумок підсумків, що починається в клітинці справа, оновлюється автоматично. Подальші вказівки наведено в клітинці A9.","Підсумок","Орієнтовно","Фактично"]
[null,"Загальний прибуток",{"$f":"Прибуток!F5","v":{"v":1936,"d":"1,936.00₴"}},{"$f":"Прибуток!G5","v":{"v":1831,"d":"1,831.00₴"}}]
[null,"Загальні витрати",{"$f":"Витрати!G5","v":{"v":1145,"d":"1,145.00₴"}},{"$f":"Витрати!H5","v":{"v":395,"d":"395.00₴"}}]
[null,"Загальний дохід (або збиток)",{"$f":"C6-C7","v":{"v":791,"d":"791.00₴"}},{"$f":"D6-D7","v":{"v":1436,"d":"1,436.00₴"}}]
["Звичайну стовпчасту діаграму з порівнянням орієнтовно та фактично загального прибутку й загальних витрат наведено в клітинці праворуч.","У цій клітинці наведено звичайну стовпчасту діаграму з порівнянням орієнтовно і фактично загального прибутку й загальних витрат."]